{"text_format":"3","workbook":"xlsx","n_sheets":3,"sheets":["Date clienți potențiali","Vânzări prognozate ","Prognoză ponderată lunar"],"not_rendered":{"charts":1,"defined_names":10},"read":"whole","date_system":"1900"}

{"sheet":"Date clienți potențiali","index":0,"n_rows":9,"n_cols":10,"rows_kept":9}
[null,"Numele firmei"]
[null,"Monitorizare detaliată a clienților potențiali"]
[null,{"$f":"TODAY()","v":"2022-04-08"}]
[{"$nulls":8},{"$f":"Nume_Firmă","v":"Numele firmei"},"CONFIDENȚIAL"]
[null,"Nume client potențial","Contact client potențial","Client potențial \nSursă","Client potențial \nRegiune","Client potențial \nTip","Oportunitate potențială","Șansă \nde vânzare","Prognoză \nÎnchidere","Ponderat \nPrognoză"]
[null,"A. Datum Corporation",{"$nulls":3},"Strategic",{"v":300000,"d":"300,000.00 lei"},{"v":0.9,"d":"90%"},"Ianuarie",{"$f":"IFERROR(IF(DateCliențiPotențiali[[#This Row],[Șansă \nde vânzare]]<>\"\",DateCliențiPotențiali[[#This Row],[Șansă \nde vânzare]]*DateCliențiPotențiali[[#This Row],[Oportunitate potențială]],\"\"),\"\")","v":{"v":270000,"d":"270,000.00 lei"}}]
[null,"Adventure Works",{"$nulls":3},"Strategic",{"v":200000,"d":"200,000.00 lei"},{"v":0.1,"d":"10%"},"Februarie",{"$f":"IFERROR(IF(DateCliențiPotențiali[[#This Row],[Șansă \nde vânzare]]<>\"\",DateCliențiPotențiali[[#This Row],[Șansă \nde vânzare]]*DateCliențiPotențiali[[#This Row],[Oportunitate potențială]],\"\"),\"\")","v":{"v":20000,"d":"20,000.00 lei"}}]
[null,"Alpine Ski House",{"$nulls":3},"Tactic",{"v":100000,"d":"100,000.00 lei"},{"v":0.2,"d":"20%"},"Martie",{"$f":"IFERROR(IF(DateCliențiPotențiali[[#This Row],[Șansă \nde vânzare]]<>\"\",DateCliențiPotențiali[[#This Row],[Șansă \nde vânzare]]*DateCliențiPotențiali[[#This Row],[Oportunitate potențială]],\"\"),\"\")","v":{"v":20000,"d":"20,000.00 lei"}}]
[null,"Total",{"$nulls":4},{"$f":"SUBTOTAL(109,DateCliențiPotențiali[Oportunitate potențială])","v":{"v":600000,"d":"600,000.00 lei"}},null,null,{"$f":"SUBTOTAL(109,DateCliențiPotențiali[Ponderat \nPrognoză])","v":{"v":310000,"d":"310,000.00 lei"}}]

{"sheet":"Vânzări prognozate ","index":1,"n_rows":21,"n_cols":14,"rows_kept":21,"merged":[[3,12,3,13]]}
[null,{"$f":"Nume_Firmă","v":"Numele firmei"}]
[null,"Vânzări prognozate"]
[null,{"$f":"DatăMonitorizare","v":"2022-04-08"}]
[{"$nulls":11},{"$f":"Nume_Firmă","v":"Numele firmei"},"CONFIDENȚIAL"]
[null,"Nume client potențial","ianuarie \nPrognoză","februarie \nPrognoză","martie \nPrognoză","aprilie \nPrognoză","mai \nPrognoză","iunie \nPrognoză","iulie \nPrognoză","august \nPrognoză","septembrie \nPrognoză","octombrie \nPrognoză","noiembrie \nPrognoză","decembrie \nPrognoză"]
[null,{"$f":"IFERROR(IF(AND(DateCliențiPotențiali[[#This Row],[Nume client potențial]] <> \"\", ROW(VânzăriPrognozate[Nume client potențial])<>UltimaIntrare),DateCliențiPotențiali[Nume client potențial], \"\"),\"\")","v":"A. Datum Corporation"},{"$f":"IFERROR(IF(DateCliențiPotențiali[[#This Row],[Prognoză \nÎnchidere]] <>\"\",IF(DateCliențiPotențiali[[#This Row],[Prognoză \nÎnchidere]]= \"Ianuarie\",DateCliențiPotențiali[Ponderat \nPrognoză],0),\"\"),\"\")","v":{"v":270000,"d":"270,000 lei"}},{"$f":"IFERROR(IF(DateCliențiPotențiali[[#This Row],[Prognoză \nÎnchidere]] <>\"\",IF(DateCliențiPotențiali[[#This Row],[Prognoză \nÎnchidere]] = \"Februarie\",DateCliențiPotențiali[Ponderat \nPrognoză],0),\"\"),\"\")","v":{"v":0,"d":"0 lei"}},{"$f":"IFERROR(IF(DateCliențiPotențiali[[#This Row],[Prognoză \nÎnchidere]] <>\"\",IF(DateCliențiPotențiali[[#This Row],[Prognoză \nÎnchidere]] = \"Martie\",DateCliențiPotențiali[Ponderat \nPrognoză],0),\"\"),\"\")","v":{"v":0,"d":"0 lei"}},{"$f":"IFERROR(IF(DateCliențiPotențiali[[#This Row],[Prognoză \nÎnchidere]] <>\"\",IF(DateCliențiPotențiali[[#This Row],[Prognoză \nÎnchidere]] = \"aprilie\",DateCliențiPotențiali[Ponderat \nPrognoză],0),\"\"),\"\")","v":{"v":0,"d":"0 lei"}},{"$f":"IFERROR(IF(DateCliențiPotențiali[[#This Row],[Prognoză \nÎnchidere]] <>\"\",IF(DateCliențiPotențiali[[#This Row],[Prognoză \nÎnchidere]] = \"mai\",DateCliențiPotențiali[Ponderat \nPrognoză],0),\"\"),\"\")","v":{"v":0,"d":"0 lei"}},{"$f":"IFERROR(IF(DateCliențiPotențiali[[#This Row],[Prognoză \nÎnchidere]] <>\"\",IF(DateCliențiPotențiali[[#This Row],[Prognoză \nÎnchidere]] = \"iunie\",DateCliențiPotențiali[Ponderat \nPrognoză],0),\"\"),\"\")","v":{"v":0,"d":"0 lei"}},{"$f":"IFERROR(IF(DateCliențiPotențiali[[#This Row],[Prognoză \nÎnchidere]] <>\"\",IF(DateCliențiPotențiali[[#This Row],[Prognoză \nÎnchidere]] = \"Iulie\",DateCliențiPotențiali[Ponderat \nPrognoză],0),\"\"),\"\")","v":{"v":0,"d":"0 lei"}},{"$f":"IFERROR(IF(DateCliențiPotențiali[[#This Row],[Prognoză \nÎnchidere]] <>\"\",IF(DateCliențiPotențiali[[#This Row],[Prognoză \nÎnchidere]] = \"august\",DateCliențiPotențiali[Ponderat \nPrognoză],0),\"\"),\"\")","v":{"v":0,"d":"0 lei"}},{"$f":"IFERROR(IF(DateCliențiPotențiali[[#This Row],[Prognoză \nÎnchidere]] <>\"\",IF(DateCliențiPotențiali[[#This Row],[Prognoză \nÎnchidere]] = \"septembrie\",DateCliențiPotențiali[Ponderat \nPrognoză],0),\"\"),\"\")","v":{"v":0,"d":"0 lei"}},{"$f":"IFERROR(IF(DateCliențiPotențiali[[#This Row],[Prognoză \nÎnchidere]] <>\"\",IF(DateCliențiPotențiali[[#This Row],[Prognoză \nÎnchidere]] = \"octombrie\",DateCliențiPotențiali[Ponderat \nPrognoză],0),\"\"),\"\")","v":{"v":0,"d":"0 lei"}},{"$f":"IFERROR(IF(DateCliențiPotențiali[[#This Row],[Prognoză \nÎnchidere]] <>\"\",IF(DateCliențiPotențiali[[#This Row],[Prognoză \nÎnchidere]] = \"noiembrie\",DateCliențiPotențiali[Ponderat \nPrognoză],0),\"\"),\"\")","v":{"v":0,"d":"0 lei"}},{"$f":"IFERROR(IF(DateCliențiPotențiali[[#This Row],[Prognoză \nÎnchidere]] <>\"\",IF(DateCliențiPotențiali[[#This Row],[Prognoză \nÎnchidere]] = \"decembrie\",DateCliențiPotențiali[Ponderat \nPrognoză],0),\"\"),\"\")","v":{"v":0,"d":"0 lei"}}]
[null,{"$f":"IFERROR(IF(AND(DateCliențiPotențiali[[#This Row],[Nume client potențial]] <> \"\", ROW(VânzăriPrognozate[Nume client potențial])<>UltimaIntrare),DateCliențiPotențiali[Nume client potențial], \"\"),\"\")","v":"Adventure Works"},{"$f":"IFERROR(IF(DateCliențiPotențiali[[#This Row],[Prognoză \nÎnchidere]] <>\"\",IF(DateCliențiPotențiali[[#This Row],[Prognoză \nÎnchidere]]= \"Ianuarie\",DateCliențiPotențiali[Ponderat \nPrognoză],0),\"\"),\"\")","v":{"v":0,"d":"0 lei"}},{"$f":"IFERROR(IF(DateCliențiPotențiali[[#This Row],[Prognoză \nÎnchidere]] <>\"\",IF(DateCliențiPotențiali[[#This Row],[Prognoză \nÎnchidere]] = \"Februarie\",DateCliențiPotențiali[Ponderat \nPrognoză],0),\"\"),\"\")","v":{"v":20000,"d":"20,000 lei"}},{"$f":"IFERROR(IF(DateCliențiPotențiali[[#This Row],[Prognoză \nÎnchidere]] <>\"\",IF(DateCliențiPotențiali[[#This Row],[Prognoză \nÎnchidere]] = \"Martie\",DateCliențiPotențiali[Ponderat \nPrognoză],0),\"\"),\"\")","v":{"v":0,"d":"0 lei"}},{"$f":"IFERROR(IF(DateCliențiPotențiali[[#This Row],[Prognoză \nÎnchidere]] <>\"\",IF(DateCliențiPotențiali[[#This Row],[Prognoză \nÎnchidere]] = \"aprilie\",DateCliențiPotențiali[Ponderat \nPrognoză],0),\"\"),\"\")","v":{"v":0,"d":"0 lei"}},{"$f":"IFERROR(IF(DateCliențiPotențiali[[#This Row],[Prognoză \nÎnchidere]] <>\"\",IF(DateCliențiPotențiali[[#This Row],[Prognoză \nÎnchidere]] = \"mai\",DateCliențiPotențiali[Ponderat \nPrognoză],0),\"\"),\"\")","v":{"v":0,"d":"0 lei"}},{"$f":"IFERROR(IF(DateCliențiPotențiali[[#This Row],[Prognoză \nÎnchidere]] <>\"\",IF(DateCliențiPotențiali[[#This Row],[Prognoză \nÎnchidere]] = \"iunie\",DateCliențiPotențiali[Ponderat \nPrognoză],0),\"\"),\"\")","v":{"v":0,"d":"0 lei"}},{"$f":"IFERROR(IF(DateCliențiPotențiali[[#This Row],[Prognoză \nÎnchidere]] <>\"\",IF(DateCliențiPotențiali[[#This Row],[Prognoză \nÎnchidere]] = \"Iulie\",DateCliențiPotențiali[Ponderat \nPrognoză],0),\"\"),\"\")","v":{"v":0,"d":"0 lei"}},{"$f":"IFERROR(IF(DateCliențiPotențiali[[#This Row],[Prognoză \nÎnchidere]] <>\"\",IF(DateCliențiPotențiali[[#This Row],[Prognoză \nÎnchidere]] = \"august\",DateCliențiPotențiali[Ponderat \nPrognoză],0),\"\"),\"\")","v":{"v":0,"d":"0 lei"}},{"$f":"IFERROR(IF(DateCliențiPotențiali[[#This Row],[Prognoză \nÎnchidere]] <>\"\",IF(DateCliențiPotențiali[[#This Row],[Prognoză \nÎnchidere]] = \"septembrie\",DateCliențiPotențiali[Ponderat \nPrognoză],0),\"\"),\"\")","v":{"v":0,"d":"0 lei"}},{"$f":"IFERROR(IF(DateCliențiPotențiali[[#This Row],[Prognoză \nÎnchidere]] <>\"\",IF(DateCliențiPotențiali[[#This Row],[Prognoză \nÎnchidere]] = \"octombrie\",DateCliențiPotențiali[Ponderat \nPrognoză],0),\"\"),\"\")","v":{"v":0,"d":"0 lei"}},{"$f":"IFERROR(IF(DateCliențiPotențiali[[#This Row],[Prognoză \nÎnchidere]] <>\"\",IF(DateCliențiPotențiali[[#This Row],[Prognoză \nÎnchidere]] = \"noiembrie\",DateCliențiPotențiali[Ponderat \nPrognoză],0),\"\"),\"\")","v":{"v":0,"d":"0 lei"}},{"$f":"IFERROR(IF(DateCliențiPotențiali[[#This Row],[Prognoză \nÎnchidere]] <>\"\",IF(DateCliențiPotențiali[[#This Row],[Prognoză \nÎnchidere]] = \"decembrie\",DateCliențiPotențiali[Ponderat \nPrognoză],0),\"\"),\"\")","v":{"v":0,"d":"0 lei"}}]
[null,{"$f":"IFERROR(IF(AND(DateCliențiPotențiali[[#This Row],[Nume client potențial]] <> \"\", ROW(VânzăriPrognozate[Nume client potențial])<>UltimaIntrare),DateCliențiPotențiali[Nume client potențial], \"\"),\"\")","v":"Alpine Ski House"},{"$f":"IFERROR(IF(DateCliențiPotențiali[[#This Row],[Prognoză \nÎnchidere]] <>\"\",IF(DateCliențiPotențiali[[#This Row],[Prognoză \nÎnchidere]]= \"Ianuarie\",DateCliențiPotențiali[Ponderat \nPrognoză],0),\"\"),\"\")","v":{"v":0,"d":"0 lei"}},{"$f":"IFERROR(IF(DateCliențiPotențiali[[#This Row],[Prognoză \nÎnchidere]] <>\"\",IF(DateCliențiPotențiali[[#This Row],[Prognoză \nÎnchidere]] = \"Februarie\",DateCliențiPotențiali[Ponderat \nPrognoză],0),\"\"),\"\")","v":{"v":0,"d":"0 lei"}},{"$f":"IFERROR(IF(DateCliențiPotențiali[[#This Row],[Prognoză \nÎnchidere]] <>\"\",IF(DateCliențiPotențiali[[#This Row],[Prognoză \nÎnchidere]] = \"Martie\",DateCliențiPotențiali[Ponderat \nPrognoză],0),\"\"),\"\")","v":{"v":20000,"d":"20,000 lei"}},{"$f":"IFERROR(IF(DateCliențiPotențiali[[#This Row],[Prognoză \nÎnchidere]] <>\"\",IF(DateCliențiPotențiali[[#This Row],[Prognoză \nÎnchidere]] = \"aprilie\",DateCliențiPotențiali[Ponderat \nPrognoză],0),\"\"),\"\")","v":{"v":0,"d":"0 lei"}},{"$f":"IFERROR(IF(DateCliențiPotențiali[[#This Row],[Prognoză \nÎnchidere]] <>\"\",IF(DateCliențiPotențiali[[#This Row],[Prognoză \nÎnchidere]] = \"mai\",DateCliențiPotențiali[Ponderat \nPrognoză],0),\"\"),\"\")","v":{"v":0,"d":"0 lei"}},{"$f":"IFERROR(IF(DateCliențiPotențiali[[#This Row],[Prognoză \nÎnchidere]] <>\"\",IF(DateCliențiPotențiali[[#This Row],[Prognoză \nÎnchidere]] = \"iunie\",DateCliențiPotențiali[Ponderat \nPrognoză],0),\"\"),\"\")","v":{"v":0,"d":"0 lei"}},{"$f":"IFERROR(IF(DateCliențiPotențiali[[#This Row],[Prognoză \nÎnchidere]] <>\"\",IF(DateCliențiPotențiali[[#This Row],[Prognoză \nÎnchidere]] = \"Iulie\",DateCliențiPotențiali[Ponderat \nPrognoză],0),\"\"),\"\")","v":{"v":0,"d":"0 lei"}},{"$f":"IFERROR(IF(DateCliențiPotențiali[[#This Row],[Prognoză \nÎnchidere]] <>\"\",IF(DateCliențiPotențiali[[#This Row],[Prognoză \nÎnchidere]] = \"august\",DateCliențiPotențiali[Ponderat \nPrognoză],0),\"\"),\"\")","v":{"v":0,"d":"0 lei"}},{"$f":"IFERROR(IF(DateCliențiPotențiali[[#This Row],[Prognoză \nÎnchidere]] <>\"\",IF(DateCliențiPotențiali[[#This Row],[Prognoză \nÎnchidere]] = \"septembrie\",DateCliențiPotențiali[Ponderat \nPrognoză],0),\"\"),\"\")","v":{"v":0,"d":"0 lei"}},{"$f":"IFERROR(IF(DateCliențiPotențiali[[#This Row],[Prognoză \nÎnchidere]] <>\"\",IF(DateCliențiPotențiali[[#This Row],[Prognoză \nÎnchidere]] = \"octombrie\",DateCliențiPotențiali[Ponderat \nPrognoză],0),\"\"),\"\")","v":{"v":0,"d":"0 lei"}},{"$f":"IFERROR(IF(DateCliențiPotențiali[[#This Row],[Prognoză \nÎnchidere]] <>\"\",IF(DateCliențiPotențiali[[#This Row],[Prognoză \nÎnchidere]] = \"noiembrie\",DateCliențiPotențiali[Ponderat \nPrognoză],0),\"\"),\"\")","v":{"v":0,"d":"0 lei"}},{"$f":"IFERROR(IF(DateCliențiPotențiali[[#This Row],[Prognoză \nÎnchidere]] <>\"\",IF(DateCliențiPotențiali[[#This Row],[Prognoză \nÎnchidere]] = \"decembrie\",DateCliențiPotențiali[Ponderat \nPrognoză],0),\"\"),\"\")","v":{"v":0,"d":"0 lei"}}]
[null,{"$f":"IFERROR(IF(AND(DateCliențiPotențiali[[#This Row],[Nume client potențial]] <> \"\", ROW(VânzăriPrognozate[Nume client potențial])<>UltimaIntrare),DateCliențiPotențiali[Nume client potențial], \"\"),\"\")","v":""},{"$f":"IFERROR(IF(DateCliențiPotențiali[[#This Row],[Prognoză \nÎnchidere]] <>\"\",IF(DateCliențiPotențiali[[#This Row],[Prognoză \nÎnchidere]]= \"Ianuarie\",DateCliențiPotențiali[Ponderat \nPrognoză],0),\"\"),\"\")","v":""},{"$f":"IFERROR(IF(DateCliențiPotențiali[[#This Row],[Prognoză \nÎnchidere]] <>\"\",IF(DateCliențiPotențiali[[#This Row],[Prognoză \nÎnchidere]] = \"Februarie\",DateCliențiPotențiali[Ponderat \nPrognoză],0),\"\"),\"\")","v":""},{"$f":"IFERROR(IF(DateCliențiPotențiali[[#This Row],[Prognoză \nÎnchidere]] <>\"\",IF(DateCliențiPotențiali[[#This Row],[Prognoză \nÎnchidere]] = \"Martie\",DateCliențiPotențiali[Ponderat \nPrognoză],0),\"\"),\"\")","v":""},{"$f":"IFERROR(IF(DateCliențiPotențiali[[#This Row],[Prognoză \nÎnchidere]] <>\"\",IF(DateCliențiPotențiali[[#This Row],[Prognoză \nÎnchidere]] = \"aprilie\",DateCliențiPotențiali[Ponderat \nPrognoză],0),\"\"),\"\")","v":""},{"$f":"IFERROR(IF(DateCliențiPotențiali[[#This Row],[Prognoză \nÎnchidere]] <>\"\",IF(DateCliențiPotențiali[[#This Row],[Prognoză \nÎnchidere]] = \"mai\",DateCliențiPotențiali[Ponderat \nPrognoză],0),\"\"),\"\")","v":""},{"$f":"IFERROR(IF(DateCliențiPotențiali[[#This Row],[Prognoză \nÎnchidere]] <>\"\",IF(DateCliențiPotențiali[[#This Row],[Prognoză \nÎnchidere]] = \"iunie\",DateCliențiPotențiali[Ponderat \nPrognoză],0),\"\"),\"\")","v":""},{"$f":"IFERROR(IF(DateCliențiPotențiali[[#This Row],[Prognoză \nÎnchidere]] <>\"\",IF(DateCliențiPotențiali[[#This Row],[Prognoză \nÎnchidere]] = \"Iulie\",DateCliențiPotențiali[Ponderat \nPrognoză],0),\"\"),\"\")","v":""},{"$f":"IFERROR(IF(DateCliențiPotențiali[[#This Row],[Prognoză \nÎnchidere]] <>\"\",IF(DateCliențiPotențiali[[#This Row],[Prognoză \nÎnchidere]] = \"august\",DateCliențiPotențiali[Ponderat \nPrognoză],0),\"\"),\"\")","v":""},{"$f":"IFERROR(IF(DateCliențiPotențiali[[#This Row],[Prognoză \nÎnchidere]] <>\"\",IF(DateCliențiPotențiali[[#This Row],[Prognoză \nÎnchidere]] = \"septembrie\",DateCliențiPotențiali[Ponderat \nPrognoză],0),\"\"),\"\")","v":""},{"$f":"IFERROR(IF(DateCliențiPotențiali[[#This Row],[Prognoză \nÎnchidere]] <>\"\",IF(DateCliențiPotențiali[[#This Row],[Prognoză \nÎnchidere]] = \"octombrie\",DateCliențiPotențiali[Ponderat \nPrognoză],0),\"\"),\"\")","v":""},{"$f":"IFERROR(IF(DateCliențiPotențiali[[#This Row],[Prognoză \nÎnchidere]] <>\"\",IF(DateCliențiPotențiali[[#This Row],[Prognoză \nÎnchidere]] = \"noiembrie\",DateCliențiPotențiali[Ponderat \nPrognoză],0),\"\"),\"\")","v":""},{"$f":"IFERROR(IF(DateCliențiPotențiali[[#This Row],[Prognoză \nÎnchidere]] <>\"\",IF(DateCliențiPotențiali[[#This Row],[Prognoză \nÎnchidere]] = \"decembrie\",DateCliențiPotențiali[Ponderat \nPrognoză],0),\"\"),\"\")","v":""}]
[null,{"$f":"IFERROR(IF(AND(DateCliențiPotențiali[[#This Row],[Nume client potențial]] <> \"\", ROW(VânzăriPrognozate[Nume client potențial])<>UltimaIntrare),DateCliențiPotențiali[Nume client potențial], \"\"),\"\")","v":""},{"$f":"IFERROR(IF(DateCliențiPotențiali[[#This Row],[Prognoză \nÎnchidere]] <>\"\",IF(DateCliențiPotențiali[[#This Row],[Prognoză \nÎnchidere]]= \"Ianuarie\",DateCliențiPotențiali[Ponderat \nPrognoză],0),\"\"),\"\")","v":""},{"$f":"IFERROR(IF(DateCliențiPotențiali[[#This Row],[Prognoză \nÎnchidere]] <>\"\",IF(DateCliențiPotențiali[[#This Row],[Prognoză \nÎnchidere]] = \"Februarie\",DateCliențiPotențiali[Ponderat \nPrognoză],0),\"\"),\"\")","v":""},{"$f":"IFERROR(IF(DateCliențiPotențiali[[#This Row],[Prognoză \nÎnchidere]] <>\"\",IF(DateCliențiPotențiali[[#This Row],[Prognoză \nÎnchidere]] = \"Martie\",DateCliențiPotențiali[Ponderat \nPrognoză],0),\"\"),\"\")","v":""},{"$f":"IFERROR(IF(DateCliențiPotențiali[[#This Row],[Prognoză \nÎnchidere]] <>\"\",IF(DateCliențiPotențiali[[#This Row],[Prognoză \nÎnchidere]] = \"aprilie\",DateCliențiPotențiali[Ponderat \nPrognoză],0),\"\"),\"\")","v":""},{"$f":"IFERROR(IF(DateCliențiPotențiali[[#This Row],[Prognoză \nÎnchidere]] <>\"\",IF(DateCliențiPotențiali[[#This Row],[Prognoză \nÎnchidere]] = \"mai\",DateCliențiPotențiali[Ponderat \nPrognoză],0),\"\"),\"\")","v":""},{"$f":"IFERROR(IF(DateCliențiPotențiali[[#This Row],[Prognoză \nÎnchidere]] <>\"\",IF(DateCliențiPotențiali[[#This Row],[Prognoză \nÎnchidere]] = \"iunie\",DateCliențiPotențiali[Ponderat \nPrognoză],0),\"\"),\"\")","v":""},{"$f":"IFERROR(IF(DateCliențiPotențiali[[#This Row],[Prognoză \nÎnchidere]] <>\"\",IF(DateCliențiPotențiali[[#This Row],[Prognoză \nÎnchidere]] = \"Iulie\",DateCliențiPotențiali[Ponderat \nPrognoză],0),\"\"),\"\")","v":""},{"$f":"IFERROR(IF(DateCliențiPotențiali[[#This Row],[Prognoză \nÎnchidere]] <>\"\",IF(DateCliențiPotențiali[[#This Row],[Prognoză \nÎnchidere]] = \"august\",DateCliențiPotențiali[Ponderat \nPrognoză],0),\"\"),\"\")","v":""},{"$f":"IFERROR(IF(DateCliențiPotențiali[[#This Row],[Prognoză \nÎnchidere]] <>\"\",IF(DateCliențiPotențiali[[#This Row],[Prognoză \nÎnchidere]] = \"septembrie\",DateCliențiPotențiali[Ponderat \nPrognoză],0),\"\"),\"\")","v":""},{"$f":"IFERROR(IF(DateCliențiPotențiali[[#This Row],[Prognoză \nÎnchidere]] <>\"\",IF(DateCliențiPotențiali[[#This Row],[Prognoză \nÎnchidere]] = \"octombrie\",DateCliențiPotențiali[Ponderat \nPrognoză],0),\"\"),\"\")","v":""},{"$f":"IFERROR(IF(DateCliențiPotențiali[[#This Row],[Prognoză \nÎnchidere]] <>\"\",IF(DateCliențiPotențiali[[#This Row],[Prognoză \nÎnchidere]] = \"noiembrie\",DateCliențiPotențiali[Ponderat \nPrognoză],0),\"\"),\"\")","v":""},{"$f":"IFERROR(IF(DateCliențiPotențiali[[#This Row],[Prognoză \nÎnchidere]] <>\"\",IF(DateCliențiPotențiali[[#This Row],[Prognoză \nÎnchidere]] = \"decembrie\",DateCliențiPotențiali[Ponderat \nPrognoză],0),\"\"),\"\")","v":""}]
[null,{"$f":"IFERROR(IF(AND(DateCliențiPotențiali[[#This Row],[Nume client potențial]] <> \"\", ROW(VânzăriPrognozate[Nume client potențial])<>UltimaIntrare),DateCliențiPotențiali[Nume client potențial], \"\"),\"\")","v":""},{"$f":"IFERROR(IF(DateCliențiPotențiali[[#This Row],[Prognoză \nÎnchidere]] <>\"\",IF(DateCliențiPotențiali[[#This Row],[Prognoză \nÎnchidere]]= \"Ianuarie\",DateCliențiPotențiali[Ponderat \nPrognoză],0),\"\"),\"\")","v":""},{"$f":"IFERROR(IF(DateCliențiPotențiali[[#This Row],[Prognoză \nÎnchidere]] <>\"\",IF(DateCliențiPotențiali[[#This Row],[Prognoză \nÎnchidere]] = \"Februarie\",DateCliențiPotențiali[Ponderat \nPrognoză],0),\"\"),\"\")","v":""},{"$f":"IFERROR(IF(DateCliențiPotențiali[[#This Row],[Prognoză \nÎnchidere]] <>\"\",IF(DateCliențiPotențiali[[#This Row],[Prognoză \nÎnchidere]] = \"Martie\",DateCliențiPotențiali[Ponderat \nPrognoză],0),\"\"),\"\")","v":""},{"$f":"IFERROR(IF(DateCliențiPotențiali[[#This Row],[Prognoză \nÎnchidere]] <>\"\",IF(DateCliențiPotențiali[[#This Row],[Prognoză \nÎnchidere]] = \"aprilie\",DateCliențiPotențiali[Ponderat \nPrognoză],0),\"\"),\"\")","v":""},{"$f":"IFERROR(IF(DateCliențiPotențiali[[#This Row],[Prognoză \nÎnchidere]] <>\"\",IF(DateCliențiPotențiali[[#This Row],[Prognoză \nÎnchidere]] = \"mai\",DateCliențiPotențiali[Ponderat \nPrognoză],0),\"\"),\"\")","v":""},{"$f":"IFERROR(IF(DateCliențiPotențiali[[#This Row],[Prognoză \nÎnchidere]] <>\"\",IF(DateCliențiPotențiali[[#This Row],[Prognoză \nÎnchidere]] = \"iunie\",DateCliențiPotențiali[Ponderat \nPrognoză],0),\"\"),\"\")","v":""},{"$f":"IFERROR(IF(DateCliențiPotențiali[[#This Row],[Prognoză \nÎnchidere]] <>\"\",IF(DateCliențiPotențiali[[#This Row],[Prognoză \nÎnchidere]] = \"Iulie\",DateCliențiPotențiali[Ponderat \nPrognoză],0),\"\"),\"\")","v":""},{"$f":"IFERROR(IF(DateCliențiPotențiali[[#This Row],[Prognoză \nÎnchidere]] <>\"\",IF(DateCliențiPotențiali[[#This Row],[Prognoză \nÎnchidere]] = \"august\",DateCliențiPotențiali[Ponderat \nPrognoză],0),\"\"),\"\")","v":""},{"$f":"IFERROR(IF(DateCliențiPotențiali[[#This Row],[Prognoză \nÎnchidere]] <>\"\",IF(DateCliențiPotențiali[[#This Row],[Prognoză \nÎnchidere]] = \"septembrie\",DateCliențiPotențiali[Ponderat \nPrognoză],0),\"\"),\"\")","v":""},{"$f":"IFERROR(IF(DateCliențiPotențiali[[#This Row],[Prognoză \nÎnchidere]] <>\"\",IF(DateCliențiPotențiali[[#This Row],[Prognoză \nÎnchidere]] = \"octombrie\",DateCliențiPotențiali[Ponderat \nPrognoză],0),\"\"),\"\")","v":""},{"$f":"IFERROR(IF(DateCliențiPotențiali[[#This Row],[Prognoză \nÎnchidere]] <>\"\",IF(DateCliențiPotențiali[[#This Row],[Prognoză \nÎnchidere]] = \"noiembrie\",DateCliențiPotențiali[Ponderat \nPrognoză],0),\"\"),\"\")","v":""},{"$f":"IFERROR(IF(DateCliențiPotențiali[[#This Row],[Prognoză \nÎnchidere]] <>\"\",IF(DateCliențiPotențiali[[#This Row],[Prognoză \nÎnchidere]] = \"decembrie\",DateCliențiPotențiali[Ponderat \nPrognoză],0),\"\"),\"\")","v":""}]
[null,{"$f":"IFERROR(IF(AND(DateCliențiPotențiali[[#This Row],[Nume client potențial]] <> \"\", ROW(VânzăriPrognozate[Nume client potențial])<>UltimaIntrare),DateCliențiPotențiali[Nume client potențial], \"\"),\"\")","v":""},{"$f":"IFERROR(IF(DateCliențiPotențiali[[#This Row],[Prognoză \nÎnchidere]] <>\"\",IF(DateCliențiPotențiali[[#This Row],[Prognoză \nÎnchidere]]= \"Ianuarie\",DateCliențiPotențiali[Ponderat \nPrognoză],0),\"\"),\"\")","v":""},{"$f":"IFERROR(IF(DateCliențiPotențiali[[#This Row],[Prognoză \nÎnchidere]] <>\"\",IF(DateCliențiPotențiali[[#This Row],[Prognoză \nÎnchidere]] = \"Februarie\",DateCliențiPotențiali[Ponderat \nPrognoză],0),\"\"),\"\")","v":""},{"$f":"IFERROR(IF(DateCliențiPotențiali[[#This Row],[Prognoză \nÎnchidere]] <>\"\",IF(DateCliențiPotențiali[[#This Row],[Prognoză \nÎnchidere]] = \"Martie\",DateCliențiPotențiali[Ponderat \nPrognoză],0),\"\"),\"\")","v":""},{"$f":"IFERROR(IF(DateCliențiPotențiali[[#This Row],[Prognoză \nÎnchidere]] <>\"\",IF(DateCliențiPotențiali[[#This Row],[Prognoză \nÎnchidere]] = \"aprilie\",DateCliențiPotențiali[Ponderat \nPrognoză],0),\"\"),\"\")","v":""},{"$f":"IFERROR(IF(DateCliențiPotențiali[[#This Row],[Prognoză \nÎnchidere]] <>\"\",IF(DateCliențiPotențiali[[#This Row],[Prognoză \nÎnchidere]] = \"mai\",DateCliențiPotențiali[Ponderat \nPrognoză],0),\"\"),\"\")","v":""},{"$f":"IFERROR(IF(DateCliențiPotențiali[[#This Row],[Prognoză \nÎnchidere]] <>\"\",IF(DateCliențiPotențiali[[#This Row],[Prognoză \nÎnchidere]] = \"iunie\",DateCliențiPotențiali[Ponderat \nPrognoză],0),\"\"),\"\")","v":""},{"$f":"IFERROR(IF(DateCliențiPotențiali[[#This Row],[Prognoză \nÎnchidere]] <>\"\",IF(DateCliențiPotențiali[[#This Row],[Prognoză \nÎnchidere]] = \"Iulie\",DateCliențiPotențiali[Ponderat \nPrognoză],0),\"\"),\"\")","v":""},{"$f":"IFERROR(IF(DateCliențiPotențiali[[#This Row],[Prognoză \nÎnchidere]] <>\"\",IF(DateCliențiPotențiali[[#This Row],[Prognoză \nÎnchidere]] = \"august\",DateCliențiPotențiali[Ponderat \nPrognoză],0),\"\"),\"\")","v":""},{"$f":"IFERROR(IF(DateCliențiPotențiali[[#This Row],[Prognoză \nÎnchidere]] <>\"\",IF(DateCliențiPotențiali[[#This Row],[Prognoză \nÎnchidere]] = \"septembrie\",DateCliențiPotențiali[Ponderat \nPrognoză],0),\"\"),\"\")","v":""},{"$f":"IFERROR(IF(DateCliențiPotențiali[[#This Row],[Prognoză \nÎnchidere]] <>\"\",IF(DateCliențiPotențiali[[#This Row],[Prognoză \nÎnchidere]] = \"octombrie\",DateCliențiPotențiali[Ponderat \nPrognoză],0),\"\"),\"\")","v":""},{"$f":"IFERROR(IF(DateCliențiPotențiali[[#This Row],[Prognoză \nÎnchidere]] <>\"\",IF(DateCliențiPotențiali[[#This Row],[Prognoză \nÎnchidere]] = \"noiembrie\",DateCliențiPotențiali[Ponderat \nPrognoză],0),\"\"),\"\")","v":""},{"$f":"IFERROR(IF(DateCliențiPotențiali[[#This Row],[Prognoză \nÎnchidere]] <>\"\",IF(DateCliențiPotențiali[[#This Row],[Prognoză \nÎnchidere]] = \"decembrie\",DateCliențiPotențiali[Ponderat \nPrognoză],0),\"\"),\"\")","v":""}]
[null,{"$f":"IFERROR(IF(AND(DateCliențiPotențiali[[#This Row],[Nume client potențial]] <> \"\", ROW(VânzăriPrognozate[Nume client potențial])<>UltimaIntrare),DateCliențiPotențiali[Nume client potențial], \"\"),\"\")","v":""},{"$f":"IFERROR(IF(DateCliențiPotențiali[[#This Row],[Prognoză \nÎnchidere]] <>\"\",IF(DateCliențiPotențiali[[#This Row],[Prognoză \nÎnchidere]]= \"Ianuarie\",DateCliențiPotențiali[Ponderat \nPrognoză],0),\"\"),\"\")","v":""},{"$f":"IFERROR(IF(DateCliențiPotențiali[[#This Row],[Prognoză \nÎnchidere]] <>\"\",IF(DateCliențiPotențiali[[#This Row],[Prognoză \nÎnchidere]] = \"Februarie\",DateCliențiPotențiali[Ponderat \nPrognoză],0),\"\"),\"\")","v":""},{"$f":"IFERROR(IF(DateCliențiPotențiali[[#This Row],[Prognoză \nÎnchidere]] <>\"\",IF(DateCliențiPotențiali[[#This Row],[Prognoză \nÎnchidere]] = \"Martie\",DateCliențiPotențiali[Ponderat \nPrognoză],0),\"\"),\"\")","v":""},{"$f":"IFERROR(IF(DateCliențiPotențiali[[#This Row],[Prognoză \nÎnchidere]] <>\"\",IF(DateCliențiPotențiali[[#This Row],[Prognoză \nÎnchidere]] = \"aprilie\",DateCliențiPotențiali[Ponderat \nPrognoză],0),\"\"),\"\")","v":""},{"$f":"IFERROR(IF(DateCliențiPotențiali[[#This Row],[Prognoză \nÎnchidere]] <>\"\",IF(DateCliențiPotențiali[[#This Row],[Prognoză \nÎnchidere]] = \"mai\",DateCliențiPotențiali[Ponderat \nPrognoză],0),\"\"),\"\")","v":""},{"$f":"IFERROR(IF(DateCliențiPotențiali[[#This Row],[Prognoză \nÎnchidere]] <>\"\",IF(DateCliențiPotențiali[[#This Row],[Prognoză \nÎnchidere]] = \"iunie\",DateCliențiPotențiali[Ponderat \nPrognoză],0),\"\"),\"\")","v":""},{"$f":"IFERROR(IF(DateCliențiPotențiali[[#This Row],[Prognoză \nÎnchidere]] <>\"\",IF(DateCliențiPotențiali[[#This Row],[Prognoză \nÎnchidere]] = \"Iulie\",DateCliențiPotențiali[Ponderat \nPrognoză],0),\"\"),\"\")","v":""},{"$f":"IFERROR(IF(DateCliențiPotențiali[[#This Row],[Prognoză \nÎnchidere]] <>\"\",IF(DateCliențiPotențiali[[#This Row],[Prognoză \nÎnchidere]] = \"august\",DateCliențiPotențiali[Ponderat \nPrognoză],0),\"\"),\"\")","v":""},{"$f":"IFERROR(IF(DateCliențiPotențiali[[#This Row],[Prognoză \nÎnchidere]] <>\"\",IF(DateCliențiPotențiali[[#This Row],[Prognoză \nÎnchidere]] = \"septembrie\",DateCliențiPotențiali[Ponderat \nPrognoză],0),\"\"),\"\")","v":""},{"$f":"IFERROR(IF(DateCliențiPotențiali[[#This Row],[Prognoză \nÎnchidere]] <>\"\",IF(DateCliențiPotențiali[[#This Row],[Prognoză \nÎnchidere]] = \"octombrie\",DateCliențiPotențiali[Ponderat \nPrognoză],0),\"\"),\"\")","v":""},{"$f":"IFERROR(IF(DateCliențiPotențiali[[#This Row],[Prognoză \nÎnchidere]] <>\"\",IF(DateCliențiPotențiali[[#This Row],[Prognoză \nÎnchidere]] = \"noiembrie\",DateCliențiPotențiali[Ponderat \nPrognoză],0),\"\"),\"\")","v":""},{"$f":"IFERROR(IF(DateCliențiPotențiali[[#This Row],[Prognoză \nÎnchidere]] <>\"\",IF(DateCliențiPotențiali[[#This Row],[Prognoză \nÎnchidere]] = \"decembrie\",DateCliențiPotențiali[Ponderat \nPrognoză],0),\"\"),\"\")","v":""}]
[null,{"$f":"IFERROR(IF(AND(DateCliențiPotențiali[[#This Row],[Nume client potențial]] <> \"\", ROW(VânzăriPrognozate[Nume client potențial])<>UltimaIntrare),DateCliențiPotențiali[Nume client potențial], \"\"),\"\")","v":""},{"$f":"IFERROR(IF(DateCliențiPotențiali[[#This Row],[Prognoză \nÎnchidere]] <>\"\",IF(DateCliențiPotențiali[[#This Row],[Prognoză \nÎnchidere]]= \"Ianuarie\",DateCliențiPotențiali[Ponderat \nPrognoză],0),\"\"),\"\")","v":""},{"$f":"IFERROR(IF(DateCliențiPotențiali[[#This Row],[Prognoză \nÎnchidere]] <>\"\",IF(DateCliențiPotențiali[[#This Row],[Prognoză \nÎnchidere]] = \"Februarie\",DateCliențiPotențiali[Ponderat \nPrognoză],0),\"\"),\"\")","v":""},{"$f":"IFERROR(IF(DateCliențiPotențiali[[#This Row],[Prognoză \nÎnchidere]] <>\"\",IF(DateCliențiPotențiali[[#This Row],[Prognoză \nÎnchidere]] = \"Martie\",DateCliențiPotențiali[Ponderat \nPrognoză],0),\"\"),\"\")","v":""},{"$f":"IFERROR(IF(DateCliențiPotențiali[[#This Row],[Prognoză \nÎnchidere]] <>\"\",IF(DateCliențiPotențiali[[#This Row],[Prognoză \nÎnchidere]] = \"aprilie\",DateCliențiPotențiali[Ponderat \nPrognoză],0),\"\"),\"\")","v":""},{"$f":"IFERROR(IF(DateCliențiPotențiali[[#This Row],[Prognoză \nÎnchidere]] <>\"\",IF(DateCliențiPotențiali[[#This Row],[Prognoză \nÎnchidere]] = \"mai\",DateCliențiPotențiali[Ponderat \nPrognoză],0),\"\"),\"\")","v":""},{"$f":"IFERROR(IF(DateCliențiPotențiali[[#This Row],[Prognoză \nÎnchidere]] <>\"\",IF(DateCliențiPotențiali[[#This Row],[Prognoză \nÎnchidere]] = \"iunie\",DateCliențiPotențiali[Ponderat \nPrognoză],0),\"\"),\"\")","v":""},{"$f":"IFERROR(IF(DateCliențiPotențiali[[#This Row],[Prognoză \nÎnchidere]] <>\"\",IF(DateCliențiPotențiali[[#This Row],[Prognoză \nÎnchidere]] = \"Iulie\",DateCliențiPotențiali[Ponderat \nPrognoză],0),\"\"),\"\")","v":""},{"$f":"IFERROR(IF(DateCliențiPotențiali[[#This Row],[Prognoză \nÎnchidere]] <>\"\",IF(DateCliențiPotențiali[[#This Row],[Prognoză \nÎnchidere]] = \"august\",DateCliențiPotențiali[Ponderat \nPrognoză],0),\"\"),\"\")","v":""},{"$f":"IFERROR(IF(DateCliențiPotențiali[[#This Row],[Prognoză \nÎnchidere]] <>\"\",IF(DateCliențiPotențiali[[#This Row],[Prognoză \nÎnchidere]] = \"septembrie\",DateCliențiPotențiali[Ponderat \nPrognoză],0),\"\"),\"\")","v":""},{"$f":"IFERROR(IF(DateCliențiPotențiali[[#This Row],[Prognoză \nÎnchidere]] <>\"\",IF(DateCliențiPotențiali[[#This Row],[Prognoză \nÎnchidere]] = \"octombrie\",DateCliențiPotențiali[Ponderat \nPrognoză],0),\"\"),\"\")","v":""},{"$f":"IFERROR(IF(DateCliențiPotențiali[[#This Row],[Prognoză \nÎnchidere]] <>\"\",IF(DateCliențiPotențiali[[#This Row],[Prognoză \nÎnchidere]] = \"noiembrie\",DateCliențiPotențiali[Ponderat \nPrognoză],0),\"\"),\"\")","v":""},{"$f":"IFERROR(IF(DateCliențiPotențiali[[#This Row],[Prognoză \nÎnchidere]] <>\"\",IF(DateCliențiPotențiali[[#This Row],[Prognoză \nÎnchidere]] = \"decembrie\",DateCliențiPotențiali[Ponderat \nPrognoză],0),\"\"),\"\")","v":""}]
[null,{"$f":"IFERROR(IF(AND(DateCliențiPotențiali[[#This Row],[Nume client potențial]] <> \"\", ROW(VânzăriPrognozate[Nume client potențial])<>UltimaIntrare),DateCliențiPotențiali[Nume client potențial], \"\"),\"\")","v":""},{"$f":"IFERROR(IF(DateCliențiPotențiali[[#This Row],[Prognoză \nÎnchidere]] <>\"\",IF(DateCliențiPotențiali[[#This Row],[Prognoză \nÎnchidere]]= \"Ianuarie\",DateCliențiPotențiali[Ponderat \nPrognoză],0),\"\"),\"\")","v":""},{"$f":"IFERROR(IF(DateCliențiPotențiali[[#This Row],[Prognoză \nÎnchidere]] <>\"\",IF(DateCliențiPotențiali[[#This Row],[Prognoză \nÎnchidere]] = \"Februarie\",DateCliențiPotențiali[Ponderat \nPrognoză],0),\"\"),\"\")","v":""},{"$f":"IFERROR(IF(DateCliențiPotențiali[[#This Row],[Prognoză \nÎnchidere]] <>\"\",IF(DateCliențiPotențiali[[#This Row],[Prognoză \nÎnchidere]] = \"Martie\",DateCliențiPotențiali[Ponderat \nPrognoză],0),\"\"),\"\")","v":""},{"$f":"IFERROR(IF(DateCliențiPotențiali[[#This Row],[Prognoză \nÎnchidere]] <>\"\",IF(DateCliențiPotențiali[[#This Row],[Prognoză \nÎnchidere]] = \"aprilie\",DateCliențiPotențiali[Ponderat \nPrognoză],0),\"\"),\"\")","v":""},{"$f":"IFERROR(IF(DateCliențiPotențiali[[#This Row],[Prognoză \nÎnchidere]] <>\"\",IF(DateCliențiPotențiali[[#This Row],[Prognoză \nÎnchidere]] = \"mai\",DateCliențiPotențiali[Ponderat \nPrognoză],0),\"\"),\"\")","v":""},{"$f":"IFERROR(IF(DateCliențiPotențiali[[#This Row],[Prognoză \nÎnchidere]] <>\"\",IF(DateCliențiPotențiali[[#This Row],[Prognoză \nÎnchidere]] = \"iunie\",DateCliențiPotențiali[Ponderat \nPrognoză],0),\"\"),\"\")","v":""},{"$f":"IFERROR(IF(DateCliențiPotențiali[[#This Row],[Prognoză \nÎnchidere]] <>\"\",IF(DateCliențiPotențiali[[#This Row],[Prognoză \nÎnchidere]] = \"Iulie\",DateCliențiPotențiali[Ponderat \nPrognoză],0),\"\"),\"\")","v":""},{"$f":"IFERROR(IF(DateCliențiPotențiali[[#This Row],[Prognoză \nÎnchidere]] <>\"\",IF(DateCliențiPotențiali[[#This Row],[Prognoză \nÎnchidere]] = \"august\",DateCliențiPotențiali[Ponderat \nPrognoză],0),\"\"),\"\")","v":""},{"$f":"IFERROR(IF(DateCliențiPotențiali[[#This Row],[Prognoză \nÎnchidere]] <>\"\",IF(DateCliențiPotențiali[[#This Row],[Prognoză \nÎnchidere]] = \"septembrie\",DateCliențiPotențiali[Ponderat \nPrognoză],0),\"\"),\"\")","v":""},{"$f":"IFERROR(IF(DateCliențiPotențiali[[#This Row],[Prognoză \nÎnchidere]] <>\"\",IF(DateCliențiPotențiali[[#This Row],[Prognoză \nÎnchidere]] = \"octombrie\",DateCliențiPotențiali[Ponderat \nPrognoză],0),\"\"),\"\")","v":""},{"$f":"IFERROR(IF(DateCliențiPotențiali[[#This Row],[Prognoză \nÎnchidere]] <>\"\",IF(DateCliențiPotențiali[[#This Row],[Prognoză \nÎnchidere]] = \"noiembrie\",DateCliențiPotențiali[Ponderat \nPrognoză],0),\"\"),\"\")","v":""},{"$f":"IFERROR(IF(DateCliențiPotențiali[[#This Row],[Prognoză \nÎnchidere]] <>\"\",IF(DateCliențiPotențiali[[#This Row],[Prognoză \nÎnchidere]] = \"decembrie\",DateCliențiPotențiali[Ponderat \nPrognoză],0),\"\"),\"\")","v":""}]
[null,{"$f":"IFERROR(IF(AND(DateCliențiPotențiali[[#This Row],[Nume client potențial]] <> \"\", ROW(VânzăriPrognozate[Nume client potențial])<>UltimaIntrare),DateCliențiPotențiali[Nume client potențial], \"\"),\"\")","v":""},{"$f":"IFERROR(IF(DateCliențiPotențiali[[#This Row],[Prognoză \nÎnchidere]] <>\"\",IF(DateCliențiPotențiali[[#This Row],[Prognoză \nÎnchidere]]= \"Ianuarie\",DateCliențiPotențiali[Ponderat \nPrognoză],0),\"\"),\"\")","v":""},{"$f":"IFERROR(IF(DateCliențiPotențiali[[#This Row],[Prognoză \nÎnchidere]] <>\"\",IF(DateCliențiPotențiali[[#This Row],[Prognoză \nÎnchidere]] = \"Februarie\",DateCliențiPotențiali[Ponderat \nPrognoză],0),\"\"),\"\")","v":""},{"$f":"IFERROR(IF(DateCliențiPotențiali[[#This Row],[Prognoză \nÎnchidere]] <>\"\",IF(DateCliențiPotențiali[[#This Row],[Prognoză \nÎnchidere]] = \"Martie\",DateCliențiPotențiali[Ponderat \nPrognoză],0),\"\"),\"\")","v":""},{"$f":"IFERROR(IF(DateCliențiPotențiali[[#This Row],[Prognoză \nÎnchidere]] <>\"\",IF(DateCliențiPotențiali[[#This Row],[Prognoză \nÎnchidere]] = \"aprilie\",DateCliențiPotențiali[Ponderat \nPrognoză],0),\"\"),\"\")","v":""},{"$f":"IFERROR(IF(DateCliențiPotențiali[[#This Row],[Prognoză \nÎnchidere]] <>\"\",IF(DateCliențiPotențiali[[#This Row],[Prognoză \nÎnchidere]] = \"mai\",DateCliențiPotențiali[Ponderat \nPrognoză],0),\"\"),\"\")","v":""},{"$f":"IFERROR(IF(DateCliențiPotențiali[[#This Row],[Prognoză \nÎnchidere]] <>\"\",IF(DateCliențiPotențiali[[#This Row],[Prognoză \nÎnchidere]] = \"iunie\",DateCliențiPotențiali[Ponderat \nPrognoză],0),\"\"),\"\")","v":""},{"$f":"IFERROR(IF(DateCliențiPotențiali[[#This Row],[Prognoză \nÎnchidere]] <>\"\",IF(DateCliențiPotențiali[[#This Row],[Prognoză \nÎnchidere]] = \"Iulie\",DateCliențiPotențiali[Ponderat \nPrognoză],0),\"\"),\"\")","v":""},{"$f":"IFERROR(IF(DateCliențiPotențiali[[#This Row],[Prognoză \nÎnchidere]] <>\"\",IF(DateCliențiPotențiali[[#This Row],[Prognoză \nÎnchidere]] = \"august\",DateCliențiPotențiali[Ponderat \nPrognoză],0),\"\"),\"\")","v":""},{"$f":"IFERROR(IF(DateCliențiPotențiali[[#This Row],[Prognoză \nÎnchidere]] <>\"\",IF(DateCliențiPotențiali[[#This Row],[Prognoză \nÎnchidere]] = \"septembrie\",DateCliențiPotențiali[Ponderat \nPrognoză],0),\"\"),\"\")","v":""},{"$f":"IFERROR(IF(DateCliențiPotențiali[[#This Row],[Prognoză \nÎnchidere]] <>\"\",IF(DateCliențiPotențiali[[#This Row],[Prognoză \nÎnchidere]] = \"octombrie\",DateCliențiPotențiali[Ponderat \nPrognoză],0),\"\"),\"\")","v":""},{"$f":"IFERROR(IF(DateCliențiPotențiali[[#This Row],[Prognoză \nÎnchidere]] <>\"\",IF(DateCliențiPotențiali[[#This Row],[Prognoză \nÎnchidere]] = \"noiembrie\",DateCliențiPotențiali[Ponderat \nPrognoză],0),\"\"),\"\")","v":""},{"$f":"IFERROR(IF(DateCliențiPotențiali[[#This Row],[Prognoză \nÎnchidere]] <>\"\",IF(DateCliențiPotențiali[[#This Row],[Prognoză \nÎnchidere]] = \"decembrie\",DateCliențiPotențiali[Ponderat \nPrognoză],0),\"\"),\"\")","v":""}]
[null,{"$f":"IFERROR(IF(AND(DateCliențiPotențiali[[#This Row],[Nume client potențial]] <> \"\", ROW(VânzăriPrognozate[Nume client potențial])<>UltimaIntrare),DateCliențiPotențiali[Nume client potențial], \"\"),\"\")","v":""},{"$f":"IFERROR(IF(DateCliențiPotențiali[[#This Row],[Prognoză \nÎnchidere]] <>\"\",IF(DateCliențiPotențiali[[#This Row],[Prognoză \nÎnchidere]]= \"Ianuarie\",DateCliențiPotențiali[Ponderat \nPrognoză],0),\"\"),\"\")","v":""},{"$f":"IFERROR(IF(DateCliențiPotențiali[[#This Row],[Prognoză \nÎnchidere]] <>\"\",IF(DateCliențiPotențiali[[#This Row],[Prognoză \nÎnchidere]] = \"Februarie\",DateCliențiPotențiali[Ponderat \nPrognoză],0),\"\"),\"\")","v":""},{"$f":"IFERROR(IF(DateCliențiPotențiali[[#This Row],[Prognoză \nÎnchidere]] <>\"\",IF(DateCliențiPotențiali[[#This Row],[Prognoză \nÎnchidere]] = \"Martie\",DateCliențiPotențiali[Ponderat \nPrognoză],0),\"\"),\"\")","v":""},{"$f":"IFERROR(IF(DateCliențiPotențiali[[#This Row],[Prognoză \nÎnchidere]] <>\"\",IF(DateCliențiPotențiali[[#This Row],[Prognoză \nÎnchidere]] = \"aprilie\",DateCliențiPotențiali[Ponderat \nPrognoză],0),\"\"),\"\")","v":""},{"$f":"IFERROR(IF(DateCliențiPotențiali[[#This Row],[Prognoză \nÎnchidere]] <>\"\",IF(DateCliențiPotențiali[[#This Row],[Prognoză \nÎnchidere]] = \"mai\",DateCliențiPotențiali[Ponderat \nPrognoză],0),\"\"),\"\")","v":""},{"$f":"IFERROR(IF(DateCliențiPotențiali[[#This Row],[Prognoză \nÎnchidere]] <>\"\",IF(DateCliențiPotențiali[[#This Row],[Prognoză \nÎnchidere]] = \"iunie\",DateCliențiPotențiali[Ponderat \nPrognoză],0),\"\"),\"\")","v":""},{"$f":"IFERROR(IF(DateCliențiPotențiali[[#This Row],[Prognoză \nÎnchidere]] <>\"\",IF(DateCliențiPotențiali[[#This Row],[Prognoză \nÎnchidere]] = \"Iulie\",DateCliențiPotențiali[Ponderat \nPrognoză],0),\"\"),\"\")","v":""},{"$f":"IFERROR(IF(DateCliențiPotențiali[[#This Row],[Prognoză \nÎnchidere]] <>\"\",IF(DateCliențiPotențiali[[#This Row],[Prognoză \nÎnchidere]] = \"august\",DateCliențiPotențiali[Ponderat \nPrognoză],0),\"\"),\"\")","v":""},{"$f":"IFERROR(IF(DateCliențiPotențiali[[#This Row],[Prognoză \nÎnchidere]] <>\"\",IF(DateCliențiPotențiali[[#This Row],[Prognoză \nÎnchidere]] = \"septembrie\",DateCliențiPotențiali[Ponderat \nPrognoză],0),\"\"),\"\")","v":""},{"$f":"IFERROR(IF(DateCliențiPotențiali[[#This Row],[Prognoză \nÎnchidere]] <>\"\",IF(DateCliențiPotențiali[[#This Row],[Prognoză \nÎnchidere]] = \"octombrie\",DateCliențiPotențiali[Ponderat \nPrognoză],0),\"\"),\"\")","v":""},{"$f":"IFERROR(IF(DateCliențiPotențiali[[#This Row],[Prognoză \nÎnchidere]] <>\"\",IF(DateCliențiPotențiali[[#This Row],[Prognoză \nÎnchidere]] = \"noiembrie\",DateCliențiPotențiali[Ponderat \nPrognoză],0),\"\"),\"\")","v":""},{"$f":"IFERROR(IF(DateCliențiPotențiali[[#This Row],[Prognoză \nÎnchidere]] <>\"\",IF(DateCliențiPotențiali[[#This Row],[Prognoză \nÎnchidere]] = \"decembrie\",DateCliențiPotențiali[Ponderat \nPrognoză],0),\"\"),\"\")","v":""}]
[null,{"$f":"IFERROR(IF(AND(DateCliențiPotențiali[[#This Row],[Nume client potențial]] <> \"\", ROW(VânzăriPrognozate[Nume client potențial])<>UltimaIntrare),DateCliențiPotențiali[Nume client potențial], \"\"),\"\")","v":""},{"$f":"IFERROR(IF(DateCliențiPotențiali[[#This Row],[Prognoză \nÎnchidere]] <>\"\",IF(DateCliențiPotențiali[[#This Row],[Prognoză \nÎnchidere]]= \"Ianuarie\",DateCliențiPotențiali[Ponderat \nPrognoză],0),\"\"),\"\")","v":""},{"$f":"IFERROR(IF(DateCliențiPotențiali[[#This Row],[Prognoză \nÎnchidere]] <>\"\",IF(DateCliențiPotențiali[[#This Row],[Prognoză \nÎnchidere]] = \"Februarie\",DateCliențiPotențiali[Ponderat \nPrognoză],0),\"\"),\"\")","v":""},{"$f":"IFERROR(IF(DateCliențiPotențiali[[#This Row],[Prognoză \nÎnchidere]] <>\"\",IF(DateCliențiPotențiali[[#This Row],[Prognoză \nÎnchidere]] = \"Martie\",DateCliențiPotențiali[Ponderat \nPrognoză],0),\"\"),\"\")","v":""},{"$f":"IFERROR(IF(DateCliențiPotențiali[[#This Row],[Prognoză \nÎnchidere]] <>\"\",IF(DateCliențiPotențiali[[#This Row],[Prognoză \nÎnchidere]] = \"aprilie\",DateCliențiPotențiali[Ponderat \nPrognoză],0),\"\"),\"\")","v":""},{"$f":"IFERROR(IF(DateCliențiPotențiali[[#This Row],[Prognoză \nÎnchidere]] <>\"\",IF(DateCliențiPotențiali[[#This Row],[Prognoză \nÎnchidere]] = \"mai\",DateCliențiPotențiali[Ponderat \nPrognoză],0),\"\"),\"\")","v":""},{"$f":"IFERROR(IF(DateCliențiPotențiali[[#This Row],[Prognoză \nÎnchidere]] <>\"\",IF(DateCliențiPotențiali[[#This Row],[Prognoză \nÎnchidere]] = \"iunie\",DateCliențiPotențiali[Ponderat \nPrognoză],0),\"\"),\"\")","v":""},{"$f":"IFERROR(IF(DateCliențiPotențiali[[#This Row],[Prognoză \nÎnchidere]] <>\"\",IF(DateCliențiPotențiali[[#This Row],[Prognoză \nÎnchidere]] = \"Iulie\",DateCliențiPotențiali[Ponderat \nPrognoză],0),\"\"),\"\")","v":""},{"$f":"IFERROR(IF(DateCliențiPotențiali[[#This Row],[Prognoză \nÎnchidere]] <>\"\",IF(DateCliențiPotențiali[[#This Row],[Prognoză \nÎnchidere]] = \"august\",DateCliențiPotențiali[Ponderat \nPrognoză],0),\"\"),\"\")","v":""},{"$f":"IFERROR(IF(DateCliențiPotențiali[[#This Row],[Prognoză \nÎnchidere]] <>\"\",IF(DateCliențiPotențiali[[#This Row],[Prognoză \nÎnchidere]] = \"septembrie\",DateCliențiPotențiali[Ponderat \nPrognoză],0),\"\"),\"\")","v":""},{"$f":"IFERROR(IF(DateCliențiPotențiali[[#This Row],[Prognoză \nÎnchidere]] <>\"\",IF(DateCliențiPotențiali[[#This Row],[Prognoză \nÎnchidere]] = \"octombrie\",DateCliențiPotențiali[Ponderat \nPrognoză],0),\"\"),\"\")","v":""},{"$f":"IFERROR(IF(DateCliențiPotențiali[[#This Row],[Prognoză \nÎnchidere]] <>\"\",IF(DateCliențiPotențiali[[#This Row],[Prognoză \nÎnchidere]] = \"noiembrie\",DateCliențiPotențiali[Ponderat \nPrognoză],0),\"\"),\"\")","v":""},{"$f":"IFERROR(IF(DateCliențiPotențiali[[#This Row],[Prognoză \nÎnchidere]] <>\"\",IF(DateCliențiPotențiali[[#This Row],[Prognoză \nÎnchidere]] = \"decembrie\",DateCliențiPotențiali[Ponderat \nPrognoză],0),\"\"),\"\")","v":""}]
[null,{"$f":"IFERROR(IF(AND(DateCliențiPotențiali[[#This Row],[Nume client potențial]] <> \"\", ROW(VânzăriPrognozate[Nume client potențial])<>UltimaIntrare),DateCliențiPotențiali[Nume client potențial], \"\"),\"\")","v":""},{"$f":"IFERROR(IF(DateCliențiPotențiali[[#This Row],[Prognoză \nÎnchidere]] <>\"\",IF(DateCliențiPotențiali[[#This Row],[Prognoză \nÎnchidere]]= \"Ianuarie\",DateCliențiPotențiali[Ponderat \nPrognoză],0),\"\"),\"\")","v":""},{"$f":"IFERROR(IF(DateCliențiPotențiali[[#This Row],[Prognoză \nÎnchidere]] <>\"\",IF(DateCliențiPotențiali[[#This Row],[Prognoză \nÎnchidere]] = \"Februarie\",DateCliențiPotențiali[Ponderat \nPrognoză],0),\"\"),\"\")","v":""},{"$f":"IFERROR(IF(DateCliențiPotențiali[[#This Row],[Prognoză \nÎnchidere]] <>\"\",IF(DateCliențiPotențiali[[#This Row],[Prognoză \nÎnchidere]] = \"Martie\",DateCliențiPotențiali[Ponderat \nPrognoză],0),\"\"),\"\")","v":""},{"$f":"IFERROR(IF(DateCliențiPotențiali[[#This Row],[Prognoză \nÎnchidere]] <>\"\",IF(DateCliențiPotențiali[[#This Row],[Prognoză \nÎnchidere]] = \"aprilie\",DateCliențiPotențiali[Ponderat \nPrognoză],0),\"\"),\"\")","v":""},{"$f":"IFERROR(IF(DateCliențiPotențiali[[#This Row],[Prognoză \nÎnchidere]] <>\"\",IF(DateCliențiPotențiali[[#This Row],[Prognoză \nÎnchidere]] = \"mai\",DateCliențiPotențiali[Ponderat \nPrognoză],0),\"\"),\"\")","v":""},{"$f":"IFERROR(IF(DateCliențiPotențiali[[#This Row],[Prognoză \nÎnchidere]] <>\"\",IF(DateCliențiPotențiali[[#This Row],[Prognoză \nÎnchidere]] = \"iunie\",DateCliențiPotențiali[Ponderat \nPrognoză],0),\"\"),\"\")","v":""},{"$f":"IFERROR(IF(DateCliențiPotențiali[[#This Row],[Prognoză \nÎnchidere]] <>\"\",IF(DateCliențiPotențiali[[#This Row],[Prognoză \nÎnchidere]] = \"Iulie\",DateCliențiPotențiali[Ponderat \nPrognoză],0),\"\"),\"\")","v":""},{"$f":"IFERROR(IF(DateCliențiPotențiali[[#This Row],[Prognoză \nÎnchidere]] <>\"\",IF(DateCliențiPotențiali[[#This Row],[Prognoză \nÎnchidere]] = \"august\",DateCliențiPotențiali[Ponderat \nPrognoză],0),\"\"),\"\")","v":""},{"$f":"IFERROR(IF(DateCliențiPotențiali[[#This Row],[Prognoză \nÎnchidere]] <>\"\",IF(DateCliențiPotențiali[[#This Row],[Prognoză \nÎnchidere]] = \"septembrie\",DateCliențiPotențiali[Ponderat \nPrognoză],0),\"\"),\"\")","v":""},{"$f":"IFERROR(IF(DateCliențiPotențiali[[#This Row],[Prognoză \nÎnchidere]] <>\"\",IF(DateCliențiPotențiali[[#This Row],[Prognoză \nÎnchidere]] = \"octombrie\",DateCliențiPotențiali[Ponderat \nPrognoză],0),\"\"),\"\")","v":""},{"$f":"IFERROR(IF(DateCliențiPotențiali[[#This Row],[Prognoză \nÎnchidere]] <>\"\",IF(DateCliențiPotențiali[[#This Row],[Prognoză \nÎnchidere]] = \"noiembrie\",DateCliențiPotențiali[Ponderat \nPrognoză],0),\"\"),\"\")","v":""},{"$f":"IFERROR(IF(DateCliențiPotențiali[[#This Row],[Prognoză \nÎnchidere]] <>\"\",IF(DateCliențiPotențiali[[#This Row],[Prognoză \nÎnchidere]] = \"decembrie\",DateCliențiPotențiali[Ponderat \nPrognoză],0),\"\"),\"\")","v":""}]
[null,"Total",{"$f":"SUBTOTAL(109,VânzăriPrognozate[ianuarie \nPrognoză])","v":{"v":270000,"d":"270,000 lei"}},{"$f":"SUBTOTAL(109,VânzăriPrognozate[februarie \nPrognoză])","v":{"v":20000,"d":"20,000 lei"}},{"$f":"SUBTOTAL(109,VânzăriPrognozate[martie \nPrognoză])","v":{"v":20000,"d":"20,000 lei"}},{"$f":"SUBTOTAL(109,VânzăriPrognozate[aprilie \nPrognoză])","v":{"v":0,"d":"0 lei"}},{"$f":"SUBTOTAL(109,VânzăriPrognozate[mai \nPrognoză])","v":{"v":0,"d":"0 lei"}},{"$f":"SUBTOTAL(109,VânzăriPrognozate[iunie \nPrognoză])","v":{"v":0,"d":"0 lei"}},{"$f":"SUBTOTAL(109,VânzăriPrognozate[iulie \nPrognoză])","v":{"v":0,"d":"0 lei"}},{"$f":"SUBTOTAL(109,VânzăriPrognozate[august \nPrognoză])","v":{"v":0,"d":"0 lei"}},{"$f":"SUBTOTAL(109,VânzăriPrognozate[septembrie \nPrognoză])","v":{"v":0,"d":"0 lei"}},{"$f":"SUBTOTAL(109,VânzăriPrognozate[octombrie \nPrognoză])","v":{"v":0,"d":"0 lei"}},{"$f":"SUBTOTAL(109,VânzăriPrognozate[noiembrie \nPrognoză])","v":{"v":0,"d":"0 lei"}},{"$f":"SUBTOTAL(109,VânzăriPrognozate[decembrie \nPrognoză])","v":{"v":0,"d":"0 lei"}}]
[null,"TOTAL CUMULATIV",{"$f":"C20","v":{"v":270000,"d":"270,000 lei"}},{"$f":"C21+D20","v":{"v":290000,"d":"290,000 lei"}},{"$f":"D21+E20","v":{"v":310000,"d":"310,000 lei"}},{"$f":"E21+F20","v":{"v":310000,"d":"310,000 lei"}},{"$f":"F21+G20","v":{"v":310000,"d":"310,000 lei"}},{"$f":"G21+H20","v":{"v":310000,"d":"310,000 lei"}},{"$f":"H21+I20","v":{"v":310000,"d":"310,000 lei"}},{"$f":"I21+J20","v":{"v":310000,"d":"310,000 lei"}},{"$f":"J21+K20","v":{"v":310000,"d":"310,000 lei"}},{"$f":"K21+L20","v":{"v":310000,"d":"310,000 lei"}},{"$f":"L21+M20","v":{"v":310000,"d":"310,000 lei"}},{"$f":"M21+N20","v":{"v":310000,"d":"310,000 lei"}}]

{"sheet":"Prognoză ponderată lunar","index":2,"n_rows":3,"n_cols":2,"rows_kept":3}
[null,{"$f":"Nume_Firmă","v":"Numele firmei"}]
[null,"Prognoză ponderată lunar"]
[null," "]